Cogmind - Beta 16 @@@ ROGUE MODE // 2025.11.02 @ 01:05:10 Player: evoluder Result: Destroyed by G-47 Trooper with Particle Gun Performance ------------- Evolutions (2) 1000 Regions Visited (3) 600 Robots Destroyed (28) 140 Value Destroyed (808) 808 Prototype IDs (16) 320 Alien Tech Used (0) 0 Bonus (0) 0 TOTAL SCORE: 2868 Bonus ------- None Cogmind --------- Core Integrity 0/550 Matter 300/300 Energy 87/100 System Corruption 0% Temperature Warning (364) Movement Core (800) Ox15 Location -8/Materials Parts ------- > --- POWER (1) -------- (None) > --- PROPULSION (4) --- (None) > --- UTILITY (4) ------ High-capacity Storage Unit Terrain Scan Processor ECM Suite > --- WEAPON (2) ------- Makeshift Laser Beam Cannon > --- INVENTORY (20) --- Nuclear Core Small Storage Unit Medium Battery (150) Seismic Detector Targeting Computer Improved Targeting Computer Shield Generator Subdweller Laser Subdweller Laser Datajack Datajack Mining Laser Mining Laser Peak State ------------ > --- POWER ------------ Improved Ion Engine > --- PROPULSION ------- Aluminum Leg Aluminum Leg Carbon-fiber Leg > --- UTILITY ---------- High-capacity Storage Unit Terrain Scanner Terrain Scan Processor Seismic Detector > --- WEAPON ----------- Subdweller Beam Cannon Subdweller Machine Gun > --- INVENTORY -------- Light Ion Engine Subdweller Power Source Nuclear Core Small Storage Unit Medium Battery Seismic Detector Targeting Computer Improved Targeting Computer ECM Suite Shield Generator Subdweller Laser Subdweller Laser Makeshift Laser Beam Cannon Light Assault Rifle Datajack Datajack Mining Laser Mining Laser [Rating: 18] Favorites ----------- Power Light Ion Engine Engine Light Ion Engine Propulsion Aluminum Leg Leg Aluminum Leg Utility High-capacity Storage Unit Device Seismic Detector Storage High-capacity Storage Unit Processor Terrain Scan Processor Weapon Assault Rifle Energy Gun Makeshift Laser Energy Cannon Subdweller Beam Cannon Ballistic Gun Assault Rifle Special Weapon Mining Laser Build | -11 -10 -10 -8 ------- Run | Yrd Mat Sub Mat Slots Evolved 4 | . . . 4 Power . | . . . . Propulsion 2 | . . . 2 Utility 2 | . . . 2 Weapon . | . . . . Parts Attached 28 | 7 6 9 6 Power 5 | 1 1 1 2 Engine 5 | 1 1 1 2 Core . | . . . . Reactor . | . . . . Propulsion 6 | 2 2 1 1 Treads . | . . . . Leg 6 | 2 2 1 1 Wheel . | . . . . Hover . | . . . . Flight . | . . . . Utility 7 | 1 2 2 2 Device 4 | . 1 2 1 Storage 2 | 1 1 . . Processor 1 | . . . 1 Hackware . | . . . . Protection . | . . . . Artifact . | . . . . Weapon 10 | 3 1 5 1 Energy Gun 1 | . . . 1 Energy Cannon 2 | . . 2 . Ballistic Gun 5 | 3 1 1 . Ballistic Cannon . | . . . . Launcher . | . . . . Special Weapon 2 | . . 2 . Impact Weapon . | . . . . Slashing Weapon . | . . . . Piercing Weapon . | . . . . Special Melee Weapon . | . . . . Unidentified Prototypes . | . . . . Parts Lost 19 | . 5 3 11 Power 5 | . 1 1 3 Propulsion 6 | . 2 1 3 Utility 2 | . . . 2 Weapon 6 | . 2 1 3 Highest Loss Streak 9 | . 3 3 9 To Critical Strikes . | . . . . Average Backups 13 | 3 11 14 16 Power 1 | . 1 . 2 Propulsion . | . 1 . . Utility 5 | . 4 7 6 Weapon 4 | 1 3 4 6 Tool/Special . | . . . . Unused Backups 9 | . . . 9 Power 1 | . . . 1 Propulsion . | . . . . Utility 4 | . . . 4 Weapon 2 | . . . 2 Tool/Special 2 | . . . 2 Average Slot Usage (%) 92 | . 92 99 75 Engine 11 | . 10 13 8 Leg 25 | . 27 27 15 Device 13 | . 11 14 16 Storage 13 | . 14 14 9 Processor 1 | . . . 8 Energy Cannon 3 | . . 4 8 Ballistic Gun 21 | . 27 23 7 Peak Build Rating 18 | 6 8 11 18 Average Rating 9 | 2 7 9 14 On Entrance 6 | . 6 8 11 Avg Prop Armor Cover (%) . | . . . . Naked Turns . | . . . . Heaviest Build 61 | 12 50 56 61 Greatest Support 35 | 20 20 20 35 Greatest Overweight (x) 17 | . 4 2 17 Average Overweight (x) 1 | . 1 2 2 Largest Inventory Capacity 20 | 8 20 20 20 Average Capacity 19 | 5 19 20 20 Most Carried 20 | 5 17 16 20 Average Carried 13 | 3 11 14 17 Final Capacity 20 | 8 20 20 20 Final Carried 16 | 2 13 16 13 Class Distribution -------------------- 85% | Mutant 14% | Scavenger-Mutant Dominant Class ---------------- Mutant | -10/Materials Mutant | -10/Subcaves Scavenger-Mutant | -8/Materials Resources | -11 -10 -10 -8 ----------- Run | Yrd Mat Sub Mat Matter Collected 697 | 187 322 104 84 Remotely . | . . . . Salvage Created 1124 | . 376 192 556 Parts 69 | . 28 13 28 Haulers Intercepted . | . . . . Recyclers Shooed . | . . . . Parts Field Recycled . | . . . . Retrieved Matter . | . . . . Parts Self-Destructed . | . . . . Prevented . | . . . . Parts Restored . | . . . . Kills | -11 -10 -10 -8 ------- Run | Yrd Mat Sub Mat Combat Hostiles Destroyed 20 | . 10 4 6 Guns 13 | . 10 1 2 Cannons 7 | . . 3 4 Classes Destroyed 6 | . 4 . 2 Builder 5 | . 1 . 4 Recycler 3 | . . . 3 Swarmer 3 | . 3 . . Grunt 10 | . 6 . 4 Sentry 2 | . . . 2 Subdweller 5 | . 1 4 . Best Kill Streak 5 | . 3 3 5 Combat Bots Only 3 | . 3 3 2 Max Kills in Single Turn 2 | . 1 1 2 Gunslinging . | . . . . Exploded . | . . . . Melee . | . . . . Uniques/NPCs Destroyed . | . . . . Combat | -11 -10 -10 -8 -------- Run | Yrd Mat Sub Mat Hostile Shots Fired 209 | . 79 20 110 Missed 49 | . 23 4 22 Hits 160 | . 56 16 88 Projectile 160 | . 56 16 88 Critical Strikes 5 | . . 1 4 Damage Taken 2539 | . 652 367 1520 Core 726 | . 67 109 550 Absorbed by Shields . | . . . . Core Remaining (%) 64 | 100 . 29 . Volleys Fired 85 | . 35 18 32 Largest 2 | . 2 2 2 Hottest 110 | . 40 110 110 Shots Fired 156 | . 68 29 59 Gun 109 | . 68 14 27 Cannon 41 | . . 9 32 Launcher . | . . . . Special 6 | . . 6 . Kinetic 101 | . 68 14 19 Thermal 55 | . . 15 40 Explosive . | . . . . Electromagnetic . | . . . . Robot Hit Streak 14 | . 14 12 14 Robot Miss Streak 3 | . 3 1 2 Penetration Max . | . . . . Secondary Targets 1 | . 1 . . Max Gunslinging Chain 1 | . 1 . . Shots Hit Robots 105 | . 47 18 40 Core Hits 46 | . 18 7 21 Critical Kills . | . . . . Critical Parts Destroyed 2 | . 1 . 1 Critical Strikes 2 | . 1 . 1 Destroy 2 | . 1 . 1 Melee Attacks . | . . . . Impact . | . . . . Slashing . | . . . . Piercing . | . . . . Sneak Attacks . | . . . . Combat Hostiles . | . . . . Follow-up Attacks . | . . . . Damage Inflicted 1929 | . 557 243 1129 Guns 948 | . 557 95 296 Cannons 820 | . . 148 672 Explosions 161 | . . . 161 Melee . | . . . . Ramming . | . . . . Kinetic 846 | . 557 95 194 Thermal 922 | . . 148 774 Explosive 161 | . . . 161 Electromagnetic . | . . . . Impact . | . . . . Slashing . | . . . . Piercing . | . . . . Highest Corruption . | . . . . Average Corruption . | . . . . Corruption Purged . | . . . . Corruption Blocked . | . . . . Overload Shots . | . . . . Overflow Damage 38 | . . . 38 Projectiles 9 | . . . 9 Explosions 29 | . . . 29 Melee . | . . . . Knockbacks . | . . . . Impact . | . . . . Kinetic . | . . . . Secondary . | . . . . Self-Inflicted Damage 138 | . . . 138 Shots 2 | . . . 2 Rammed . | . . . . Targets Rammed . | . . . . Kicked . | . . . . Crushed . | . . . . Highest Temperature 355 | . 11 6 355 Average Temperature 115 | . 4 6 129 Received Heat Transfer 1107 | . 237 24 846 Effects 3 | . . . 3 Interference 3 | . . . 3 Siege Activations . | . . . . Martial Activations . | . . . . Shielding Activations . | . . . . Robots Disrupted . | . . . . Combat Hostiles . | . . . . Robots Corrupted . | . . . . Combat Hostiles . | . . . . Parts Fried . | . . . . Impact Corruptions . | . . . . Robots Melted . | . . . . Combat Hostiles . | . . . . Parts Melted 1 | . . . 1 Heat Transferred 1517 | . . 296 1221 Parts Sabotaged . | . . . . Parts Stolen . | . . . . Parts Stripped . | . . . . Power Chain Reactions . | . . . . Alert | -11 -10 -10 -8 ------- Run | Yrd Mat Sub Mat Maximum Alert Level . | . . . . Low Security (%) 100 | 100 100 . 100 Level 1 . | . . . . Level 2 . | . . . . Level 3 . | . . . . Level 4 . | . . . . Level 5 . | . . . . High Security . | . . . . Max Security . | . . . . Peak Influence 129 | . 67 . 129 Initial . | . . . . Average 20 | . 17 . 26 Influence Increases 640 | . 291 . 349 Destroy 0b10 Robot/C 300 | . 180 . 120 Destroy 0b10 Robot/NC 40 | . 5 . 35 Destroy Leader 60 | . 40 . 20 Successful Hack 10 | . 5 . 5 Disable Machine 60 | . . . 60 Destroy Structure 35 | . 1 . 34 Partial Spotted 30 | . 30 . . Lose Combat Pursuer 105 | . 30 . 75 Influence Decreases 536 | . 291 . 245 Time Decay 403 | . 268 . 135 Lost Part 133 | . 23 . 110 Squads Dispatched 2 | . 2 . . Investigation 1 | . 1 . . Extermination . | . . . . Reinforcement 1 | . 1 . . Assault . | . . . . Garrison . | . . . . Intercept . | . . . . Searches Triggered . | . . . . Construction Impeded . | . . . . Haulers Reinforced . | . . . . Active Scanning Responses . | . . . . Cargo Convoy Interrupts . | . . . . Stealth | -11 -10 -10 -8 --------- Run | Yrd Mat Sub Mat Distress Signals 1 | . 1 . . Communications Jammed . | . . . . Distress Signals . | . . . . Times Spotted 36 | . 18 4 14 Peak Tracking Total 6 | . 5 3 6 Tactical Retreats 6 | . 3 . 3 Traps | -11 -10 -10 -8 ------- Run | Yrd Mat Sub Mat Traps Triggered 2 | . 1 1 . Indirectly . | . . . . Trap Hack Attempts . | . . . . Triggered . | . . . . Disarmed . | . . . . Reprogrammed . | . . . . Reused . | . . . . Traps Extracted . | . . . . Installed . | . . . . Triggered . | . . . . Machines | -11 -10 -10 -8 ---------- Run | Yrd Mat Sub Mat Machines Disabled 5 | . . 1 4 Max in Single Turn 4 | . . 1 4 Machines Repaired . | . . . . Machines Dismantled . | . . . . Machines Sabotaged . | . . . . Overloaded Fab Kills . | . . . . Hacking | -11 -10 -10 -8 --------- Run | Yrd Mat Sub Mat Machines Accessed 5 | . 2 1 2 Terminals 3 | . 2 . 1 Fabricators . | . . . . Repair Stations . | . . . . Recycling Units . | . . . . Scanalyzers 1 | . . . 1 Garrison Access . | . . . . Total Hacks 21 | . 7 9 5 Successful 14 | . 2 9 3 Failed 7 | . 5 . 2 Catastrophic . | . . . . Database Lockouts . | . . . . Manual . | . . . . Terminals 9 | . 7 . 2 Fabricators . | . . . . Repair Stations . | . . . . Recycling Units . | . . . . Scanalyzers 3 | . . . 3 Garrison Access . | . . . . Terminal Hacks 12 | . 2 9 1 Record 8 | . . 8 . Prototype ID Bank 2 | . 1 . 1 Zone Layout 1 | . 1 . . Proto ID Catalog 1 | . . 1 . Fabricator Hacks . | . . . . Repair Station Hacks . | . . . . Recycling Unit Hacks . | . . . . Scanalyzer 2 | . . . 2 Retrieve Study 2 | . . . 2 Garrison Access Hacks . | . . . . Unauthorized Hacks . | . . . . Terminals . | . . . . Fabricators . | . . . . Repair Stations . | . . . . Recycling Units . | . . . . Scanalyzers . | . . . . Garrison Access . | . . . . Data Cores Recovered . | . . . . Used . | . . . . Hacking Detections 3 | . 2 . 1 Full Trace Events . | . . . . Feedback Events . | . . . . Feedback Blocked . | . . . . Robot Schematics Acquired . | . . . . Robots Built . | . . . . Authchips . | . . . . Time . | . . . . Total Robot Build Rating . | . . . . Part Schematics Acquired . | . . . . Parts Built . | . . . . Authchips . | . . . . Time . | . . . . Total Part Build Rating . | . . . . Part Studies Acquired 2 | . . . 2 Parts Repaired . | . . . . Time . | . . . . Parts Recycled . | . . . . Recycled Matter . | . . . . Retrieved Matter . | . . . . Retrieved Components . | . . . . Parts Scanalyzed . | . . . . Part Schematics Acquired . | . . . . Parts Damaged . | . . . . Bothacking | -11 -10 -10 -8 ------------ Run | Yrd Mat Sub Mat Used RIF Installer . | . . . . Robots Hacked . | . . . . Non-combat . | . . . . Combat . | . . . . Robot Hacks Applied . | . . . . Relay Couplers Released . | . . . . Fabnet Peak Effective % . | . . . . Robots Rewired . | . . . . Allies Hacked . | . . . . Hacks Repelled . | . . . . Allies | -11 -10 -10 -8 -------- Run | Yrd Mat Sub Mat Total Allies . | . . . . Largest Group . | . . . . Highest-Rated Group . | . . . . Highest-Rated Ally . | . . . . Total Orders . | . . . . Ally Attacks . | . . . . Total Damage . | . . . . Kills . | . . . . Allies Corrupted . | . . . . Allies Melted . | . . . . Intel | -11 -10 -10 -8 ------- Run | Yrd Mat Sub Mat Active Infowar (turns) 2237 | . 790 1030 417 Terrain 370 | . . 1 369 Seismic 2165 | . 790 1029 346 ECM 48 | . . . 48 Robot Analysis Total . | . . . . Derelict Logs Recovered . | . . . . Drone Launches . | . . . . Drone Recoveries . | . . . . Exploration | -11 -10 -10 -8 ------------- Run | Yrd Mat Sub Mat Turns Passed 2553 | 47 983 1030 493 Spaces Moved 847 | 34 324 367 122 Core 13 | 10 . . 3 Treads . | . . . . Legs 834 | 24 324 367 119 Wheels . | . . . . Hover . | . . . . Flight . | . . . . Fastest Speed 50 | 50 120 260 180 Average Speed 252 | 99 247 260 288 Slowest Speed 900 | 120 400 260 900 Overloaded Moves . | . . . . Propulsion Burnouts . | . . . . Robots Hopped . | . . . . Potential Cave-ins . | . . . . Cave-ins Triggered . | . . . . Exploration Rate (%) 24 | 3 46 33 16 Regions Visited 3 Branch Regions 1 Pre-discovered Areas . | . . . . Known Exits Taken . | . . . . Unknown Exits Taken 3 | 1 1 1 . Scrap Searched . | . . . . Spaces Dug . | . . . . Terrain Destroyed 33 | . . . 33 Melee . | . . . . Projectile 4 | . . . 4 AOE 29 | . . . 29 Terrain Rammed . | . . . . Walls Destroyed . | . . . . Machines Disabled . | . . . . Actions | -11 -10 -10 -8 --------- Run | Yrd Mat Sub Mat Total 1088 | 45 438 400 205 Wait 90 | . 55 . 35 Move 844 | 33 323 366 122 Hop . | . . . . Pick Up 34 | 5 17 6 6 Fast Attach 3 | 3 . . . Attach 22 | 3 7 3 9 Detach 1 | . 1 . . Swap 9 | 1 . 7 1 Drop . | . . . . Fire 85 | . 35 18 32 Melee . | . . . . Ram . | . . . . Kick . | . . . . Crush . | . . . . Escape Stasis . | . . . . Rewire . | . . . . Trap . | . . . . Miscellaneous . | . . . . Route ------- -11/Scrapyard -10/Materials (discovered 2 exits: [*Mat] / *Sub) -10/Subcaves -8/Materials History --------- Turn | Location | Event 8 | -11/Scrapyard | Discovered new exit (range 16) 48 | -11/Scrapyard | Entered Materials 300 | -10/Materials | Build established: Mutant 459 | -10/Materials | Discovered new exit (range 10) 626 | -10/Materials | Discovered new exit (range 13) 748 | -10/Materials | Derelicts attacked the area 944 | -10/Materials | Lost 3 parts (1n2w) 1031 | -10/Materials | Entered Subcaves 1252 | -10/Subcaves | Shifting Twisted Machinery released Sub. Beam Cannon 1262 | -10/Subcaves | Shifting Twisted Machinery released Mak. Laser 1698 | -10/Subcaves | Visited 4L-MR0's lab 1713 | -10/Subcaves | Core integrity fell below 50% 1751 | -10/Subcaves | Lost 3 parts (1p1n1w) 1991 | -10/Subcaves | Discovered new exit (range 4) 2061 | -10/Subcaves | Entered Materials 2061 | -8/Materials | Evolved 4 slots: Propulsion x2, Utility x2 2357 | -8/Materials | Build established: Scavenger-Mutant 2496 | -8/Materials | Core integrity fell below 50% 2530 | -8/Materials | Core integrity fell below 20% 2541 | -8/Materials | Lost 9 parts (2p2n2u3w) 2554 | -8/Materials | Destroyed by G-47 Trooper with Particle Gun Last Messages --------------- R-06 Scavenger collects Com. Wheel. U-05 Engineer lays Concrete. U-05 Engineer builds a Wall. U-05 Engineer lays Concrete. U-05 Engineer builds a Wall. U-05 Engineer lays Concrete. U-05 Engineer builds a Wall. U-05 Engineer lays Concrete. Acquired 10 matter. U-05 Engineer builds a Door. U-05 Engineer builds a Wall. Aluminum Leg melted. G-47 Trooper destroyed. U-05 Engineer destroyed. U-05 Engineer lays Concrete. G-47 Trooper destroyed. U-05 Engineer builds a Wall. U-05 Engineer destroyed. Sub. Power Source destroyed. U-05 Engineer destroyed. Map ----- +----------------------------------------------------+ | ?????????????????????????????????????????????????? | | ?????????????????????????????????????????????????? | | ?????????????????????????????????????????????????? | | ?????????????????????????????????????????????????? | | ?????????????????????????????????????????????????? | | ?????????????????????????????????????????????????? | | ?????????????????????????????????????????????????? | | ?????????????????????????????????????????????????? | | ?????????????????????????????????????????????????? | | ??????????????????????????? ???????????????????? | | ??????????????????? ???? ? "??????????????????? | | ?????????????????#? ##????# """? ?????????????? | | ??????????????????? #?#?#?# """" ???????????? | | ??????????????????# #?##?"" ??????????? | | ??????????????????# #####"Y #?????????? | | ?????????????????## ### "" #?????????? | | ?????????????######u####### [ #?????????? | | ?????????????# # % #?????????? | | ???????#?????# u # #?????????? | | ????????? ?? # # ##????????? | | ????????????## ! # ##T#??????? | | ????????????## %| u # ?????? | | ????????????## *!% =!=|# == ?????? | | ????????????## % %%=%+% = ????? | | ????????????## *!g%# ?? ???? | | ????????????## u @# "T" ??????? | | ??????????#?## ###/#######+##?? ?????? | | ????????????## ## #?????????? | | ?????????????# ## """ #??"??????? | | ?????????????####### ####### """ # """ ?"? | | ?????????????#?########?#### "S """ # """ ???? | | ?????????????????####?#??#?# """ # | | ??????#?????????###?##??#??# "" # ? ? | | ????????????????? ?? ###?### # #?# | | ?????????????????? ???###############+## ???# | | ????????????????? ??? ### ##?## | | ??????????????????? ?? ### ###?# | | ?????????????????????? ### ##?## | | ?????????????????????? ##+####### #?# #?### | | ?????????????????????? ?? ?????? ?## ### ##### | | ??????????????????????? ???#?? ?## ## #### | | ???????????????????????????? ? ### ## #### | | ?????????????????????????? ?? ? ### ## " | | ???????????????????????? ?#?? ??## ## #### | | ???????????????????????????? ?? ### ## #### | | ????????????????????????? ???? ???# ### ###### | | ?????????????????????????????? ?# ### # | | ?????????????????????????#?????#### %+ """ | | ???????????????????????? ?? ? ### ### # """ | | ??????????????????????????????? ### ### # """ | +----------------------------------------------------+ Best States ------------- Heat Dissipation 31 Energy Generation 15 Energy Capacity 265 Matter Stores 300 Matter Capacity 300 Sight Range 16 Terrain Scan Range 14 Terrain Scan Density 85 ECM Strength 1 Evasion (%) 55 Item Schematics ----------------- None Robot Schematics ------------------ None Fabricated ------------ Nothing Repaired ---------- Nothing Studied --------- Datajack | -8/Materials | Hacked Aluminum Leg | -8/Materials | Hacked Alien Tech Used ----------------- None Achievements -------------- None Challenges ------------ None Game ------ Seed PointGaussMace Manual? 0 Play Time 00:32:33 Cumulative 12.7 hours Start 2025.11.02 @ 01:15:22 End 2025.11.02 @ 01:05:10 Sessions 1 Manual Loads 0 Difficulty Rogue Special Mode None Game No. 13 Rogue 13 Adventurer 0 Explorer 0 Win Type - Total 0 Types 0/0/0/0/0/0/0/0/0/0 Lore% 8 Gallery% 12 Achievement% 12 Wizard Run 0 Options --------- Layout 0 ASCII 0 Keyboard 0 Movement Mouse Keybinds 0 Fullscreen 1 Font 36/Smallcaps Map View 76x50 Zoom Use 0% Tactical HUD 0 Map Filters NONE Filters NONE Steam 1 RUN: c3612bb2-4620-463e-8a4e-478e00d92136